{"text_format":"1","workbook":"xlsx","n_sheets":2,"sheets":["Emissão","Operador"],"not_rendered":{"charts":0,"images":1,"macros":1,"external_links":2,"defined_names":20,"comments":0,"pivot_tables":0},"unopened":[],"bounds":{"document_bytes":16777216,"sheet_cells":100000,"rows_first":2000,"rows_last":500,"rows_between":2000,"halvings":0,"cell_chars":16384,"cell_head_chars":4096},"cells_cut":0,"cells_raw":0,"read":"whole","date_system":"1900"}

{"sheet":"Emissão","index":0,"n_rows":8,"n_cols":23,"rows_kept":8,"cut":false,"hidden":false,"merged":[]}
["Operador","Data Emissao","Contratante","Obra","Venda","CPF","Cliente","Tipo Negociacao","ID","Data Vencimento","Valor Parcela","Hon %","Honorarios","Total","Status Boleto","Nº Boleto","Grad/Pós","Fraseologia","Saldo devedor"," Status Honorários","Valor de honorários","Quantidade Parcelas","Valor de Parcelas"]
["TESTE","2022-09-19","TESTE","TESTE",0,11111111111,{"$f":"IF(Emissão[[#This Row],[CPF]]=\"\",\"\",IFERROR(VLOOKUP(Emissão[[#This Row],[CPF]],Operador!$K:$L,2,FALSE),\"cliente não esta na base\"))","v":"TESTE1"},"TESTE","TESTE","2022-09-29",null,null,{"$f":"IFERROR(K2*L2%,\"\")","v":0},{"$f":"SUM(Emissão[[#This Row],[Valor Parcela]],Emissão[[#This Row],[Honorarios]])","v":0},null,null,null,{"$f":"CONCATENATE(\"Referente a parcela de nº \",[1]Emissão!H37,\" venda \",[1]Emissão!E37,\" loteamento \",[1]Emissão!D37)","v":"Referente a parcela de nº  venda  loteamento "}]
["TESTE","2022-09-19","TESTE","TESTE",0,22222222222,{"$f":"IF(Emissão[[#This Row],[CPF]]=\"\",\"\",IFERROR(VLOOKUP(Emissão[[#This Row],[CPF]],Operador!$K:$L,2,FALSE),\"cliente não esta na base\"))","v":"TESTE2"},"TESTE","TESTE","2022-10-10",null,null,0,{"$f":"SUM(Emissão[[#This Row],[Valor Parcela]],Emissão[[#This Row],[Honorarios]])","v":0},null,null,null,{"$f":"CONCATENATE(\"Referente a parcela de nº \",[1]Emissão!H38,\" venda \",[1]Emissão!E38,\" loteamento \",[1]Emissão!D38)","v":"Referente a parcela de nº  venda  loteamento "}]
["TESTE","2022-09-19","TESTE","TESTE",0,33333333333,{"$f":"IF(Emissão[[#This Row],[CPF]]=\"\",\"\",IFERROR(VLOOKUP(Emissão[[#This Row],[CPF]],Operador!$K:$L,2,FALSE),\"cliente não esta na base\"))","v":"TESTE3"},"TESTE","TESTE","2022-09-19",null,null,0,{"$f":"SUM(Emissão[[#This Row],[Valor Parcela]],Emissão[[#This Row],[Honorarios]])","v":0},null,null,null,{"$f":"CONCATENATE(\"Referente a parcela de nº \",[1]Emissão!H39,\" venda \",[1]Emissão!E39,\" loteamento \",[1]Emissão!D39)","v":"Referente a parcela de nº  venda  loteamento "}]
["TESTE","2022-09-19","TESTE","TESTE",0,44444444444,{"$f":"IF(Emissão[[#This Row],[CPF]]=\"\",\"\",IFERROR(VLOOKUP(Emissão[[#This Row],[CPF]],Operador!$K:$L,2,FALSE),\"cliente não esta na base\"))","v":"TESTE4"},"TESTE","TESTE","2022-09-19",null,null,0,{"$f":"SUM(Emissão[[#This Row],[Valor Parcela]],Emissão[[#This Row],[Honorarios]])","v":0},null,null,null,{"$f":"CONCATENATE(\"Referente a parcela de nº \",[1]Emissão!H40,\" venda \",[1]Emissão!E40,\" loteamento \",[1]Emissão!D40)","v":"Referente a parcela de nº  venda  loteamento "}]
["TESTE","2022-09-19","TESTE","TESTE",0,55555555555,{"$f":"IF(Emissão[[#This Row],[CPF]]=\"\",\"\",IFERROR(VLOOKUP(Emissão[[#This Row],[CPF]],Operador!$K:$L,2,FALSE),\"cliente não esta na base\"))","v":"TESTE5"},"TESTE","TESTE","2022-10-06",null,null,0,{"$f":"SUM(Emissão[[#This Row],[Valor Parcela]],Emissão[[#This Row],[Honorarios]])","v":0},null,null,null,{"$f":"CONCATENATE(\"Referente a parcela de nº \",[1]Emissão!H41,\" venda \",[1]Emissão!E41,\" loteamento \",[1]Emissão!D41)","v":"Referente a parcela de nº  venda  loteamento "}]
["TESTE","2022-09-19","TESTE","TESTE",0,66666666666,{"$f":"IF(Emissão[[#This Row],[CPF]]=\"\",\"\",IFERROR(VLOOKUP(Emissão[[#This Row],[CPF]],Operador!$K:$L,2,FALSE),\"cliente não esta na base\"))","v":"TESTE6"},"TESTE","TESTE","2022-09-19",null,null,0,{"$f":"SUM(Emissão[[#This Row],[Valor Parcela]],Emissão[[#This Row],[Honorarios]])","v":0},null,null,null,{"$f":"CONCATENATE(\"Referente a parcela de nº \",[1]Emissão!H42,\" venda \",[1]Emissão!E42,\" loteamento \",[1]Emissão!D42)","v":"Referente a parcela de nº  venda  loteamento "}]
["TESTE","2022-09-19","TESTE","TESTE",0,77777777777,{"$f":"IF(Emissão[[#This Row],[CPF]]=\"\",\"\",IFERROR(VLOOKUP(Emissão[[#This Row],[CPF]],Operador!$K:$L,2,FALSE),\"cliente não esta na base\"))","v":"TESTE7"},"TESTE","TESTE","2022-10-12",null,null,0,{"$f":"SUM(Emissão[[#This Row],[Valor Parcela]],Emissão[[#This Row],[Honorarios]])","v":0},null,null,null,{"$f":"CONCATENATE(\"Referente a parcela de nº \",[1]Emissão!H43,\" venda \",[1]Emissão!E43,\" loteamento \",[1]Emissão!D43)","v":"Referente a parcela de nº  venda  loteamento "}]

{"sheet":"Operador","index":1,"n_rows":10,"n_cols":15,"rows_kept":10,"cut":false,"hidden":false,"merged":[[0,0,1,14]]}
["Distribuição "]
[]
["Carteira","Operador","Nº Parcelas","Venda","Unidade","Cod. Cliente/Contrato","Loteamento/Curso/LUC","Atraso real","Valor total","Status","CPF/CNPJ","Nome","Status 2","Status Virtua","OBS"]
["TESTE","TESTE","TESTE","TESTE","TESTE","TESTE","TESTE","TESTE","TESTE","TESTE",11111111111,"TESTE1"]
["TESTE","TESTE","TESTE","TESTE","TESTE","TESTE","TESTE","TESTE","TESTE","TESTE",22222222222,"TESTE2"]
["TESTE","TESTE","TESTE","TESTE","TESTE","TESTE","TESTE","TESTE","TESTE","TESTE",33333333333,"TESTE3"]
["TESTE","TESTE","TESTE","TESTE","TESTE","TESTE","TESTE","TESTE","TESTE","TESTE",44444444444,"TESTE4"]
["TESTE","TESTE","TESTE","TESTE","TESTE","TESTE","TESTE","TESTE","TESTE","TESTE",55555555555,"TESTE5"]
["TESTE","TESTE","TESTE","TESTE","TESTE","TESTE","TESTE","TESTE","TESTE","TESTE",66666666666,"TESTE6"]
["TESTE","TESTE","TESTE","TESTE","TESTE","TESTE","TESTE","TESTE","TESTE","TESTE",77777777777,"TESTE7"]